bitfinex-derivatives/quotes_BTCF0:USTF0_20251118
["timestamp","ask_amount","ask_price","bid_price","bid_amount"]
[1763490344580,0.1509978,93379.0,93378.0,0.40537]
[1763490345280,0.1297116,93370.0,93369.0,0.1517391]
[1763490345480,0.1297116,93370.0,93369.0,0.04457]
[1763490345481,0.15330654,93370.0,93369.0,0.04457]
[1763490348075,0.12757595,93370.0,93369.0,0.04457]
[1763490348485,0.00229494,93370.0,93369.0,0.04457]
[1763490349084,0.04613494,93370.0,93369.0,0.04457]
[1763490349275,0.10946304,93370.0,93369.0,0.04457]
[1763490349681,0.00229494,93370.0,93369.0,0.04457]
[1763490350487,0.04613494,93370.0,93369.0,0.04457]
[1763490351288,0.04384,93367.0,93366.0,0.00026776]
[1763490351487,0.04384,93353.0,93352.0,0.0578]
[1763490351793,0.1510277,93353.0,93352.0,0.04457]
[1763490352690,0.04384,93353.0,93352.0,0.04457]
[1763490352891,0.00016063,93362.0,93361.0,0.1517485]
[1763490353089,0.02146063,93362.0,93361.0,0.04457]
[1763490353288,0.1510219,93358.0,93357.0,0.383]
[1763490353483,0.00219803,93360.0,93359.0,0.04457]
[1763490353689,0.10937883,93360.0,93359.0,0.04457]
[1763490354082,0.00219803,93360.0,93359.0,0.04457]
[1763490354686,0.02349803,93360.0,93359.0,0.04457]
[1763490355285,0.04603803,93360.0,93359.0,0.04457]
[1763490356086,0.02103705,93360.0,93359.0,0.04457]
[1763490356391,0.04233705,93360.0,93359.0,0.04457]
[1763490356692,0.00016063,93362.0,93361.0,0.04457]
[1763490357890,0.02302063,93362.0,93361.0,0.04457]
[1763490358094,0.02302063,93362.0,93361.0,0.1517485]
[1763490358295,0.02302063,93362.0,93361.0,0.04457]
[1763490359394,0.04614063,93362.0,93361.0,0.04457]
[1763490360695,0.1531585,93361.0,93360.0,0.00219803]
[1763490361186,0.1531757,93346.0,93345.0,0.02316917]
[1763490361387,0.41187261,93346.0,93345.0,0.04633917]
[1763490361788,0.41187261,93346.0,93345.0,0.02316917]
[1763490362194,0.41187261,93346.0,93345.0,7.917e-05]
[1763490363295,0.41187261,93346.0,93345.0,0.04633917]
[1763490363692,0.41187261,93346.0,93345.0,7.917e-05]
[1763490363995,0.30467691,93346.0,93345.0,0.04633917]
[1763490364200,0.08155242,93347.0,93346.0,0.04626]
[1763490364388,0.36301242,93347.0,93346.0,0.04626]
[1763490364590,0.38613242,93347.0,93346.0,0.04626]
[1763490365195,0.38613242,93347.0,93345.0,0.10727547]
[1763490365196,0.04598,93346.0,93345.0,7.917e-05]
[1763490366597,0.07011494,93346.0,93345.0,7.917e-05]
[1763490366807,0.04598,93329.0,93328.0,0.05946]
[1763490366991,0.1531952,93329.0,93328.0,0.05946]
[1763490367195,0.1531952,93329.0,93322.0,0.3608]
[1763490367196,0.1532021,93323.0,93322.0,0.3608]
[1763490367504,0.04598,93305.0,93304.0,0.05946]
[1763490367699,0.04605917,93305.0,93304.0,0.05946]
[1763490368301,0.04598,93303.0,93302.0,0.3608]
[1763490369402,0.04598,93303.0,93290.0,0.38389]
[1763490369403,0.04598,93291.0,93290.0,0.38389]
[1763490369614,0.1532389,93291.0,93290.0,0.36299803]
[1763490369796,0.1532389,93291.0,93290.0,0.40925803]
[1763490369999,0.5140389,93291.0,93290.0,0.04845803]
[1763490370194,0.1532435,93287.0,93281.0,0.1072704]
[1763490370396,0.41196267,93287.0,93280.0,0.0132]
[1763490370598,0.41196267,93287.0,93276.0,0.0132]
[1763490371804,0.04605917,93287.0,93286.0,0.04652799]
[1763490372007,0.25875917,93287.0,93286.0,0.04652799]
[1763490372199,0.04605917,93287.0,93286.0,0.00026799]
[1763490372400,0.04598,93274.0,93273.0,0.40706]
[1763490372594,0.02286,93274.0,93273.0,0.40706]
[1763490373001,0.02286,93274.0,93273.0,0.5143396]
[1763490373194,0.1532555,93277.0,93276.0,0.04626]
[1763490373398,0.04598,93274.0,93273.0,0.3608]
[1763490373995,0.3608,93282.0,93281.0,0.04626]
[1763490374200,0.30466,93282.0,93281.0,0.04626]
[1763490374803,0.1532504,93281.0,93280.0,0.00219803]
[1763490375004,0.1532584,93274.0,93273.0,0.40706]
[1763490375804,0.4119784,93274.0,93273.0,0.04626]
[1763490376006,0.4119784,93274.0,93270.0,0.00219803]
[1763490376007,0.04598,93263.0,93262.0,0.40706]
[1763490377010,0.25872,93267.0,93266.0,0.04626]
[1763490377210,0.3047,93267.0,93266.0,0.04626]
[1763490378017,0.30474,93267.0,93266.0,0.04626]
[1763490378198,0.10801567,93270.0,93269.0,0.04626]
[1763490378404,0.38963567,93270.0,93269.0,0.04626]
[1763490378598,0.41275567,93270.0,93269.0,0.04626]
[1763490378906,0.25949267,93270.0,93269.0,0.1535441]
[1763490379101,0.00073267,93270.0,93269.0,0.04626]
[1763490379309,0.02359267,93270.0,93269.0,0.04626]
[1763490379511,0.00073267,93270.0,93269.0,0.04626]
[1763490380904,7.917e-05,93274.0,93273.0,0.1518295]
[1763490381108,7.917e-05,93274.0,93273.0,0.5126295]
[1763490382103,0.00016082,93283.0,93282.0,0.1499492]
[1763490382298,0.00016082,93283.0,93282.0,0.5107492]
[1763490382906,0.00016082,93283.0,93282.0,0.40348]
[1763490382907,0.02292082,93283.0,93282.0,0.40348]
[1763490383114,0.02292082,93283.0,93282.0,0.5107492]
[1763490383115,0.00016082,93283.0,93282.0,0.5107492]
[1763490383407,0.00216082,93283.0,93282.0,0.5107492]
[1763490383611,0.3608,93300.0,93299.0,0.04268]
[1763490383802,0.66624267,93300.0,93299.0,0.04268]
[1763490384004,0.41269117,93300.0,93299.0,0.04268]
[1763490384606,0.1300181,93294.0,93293.0,0.1499358]
[1763490384806,0.3660488,93300.0,93299.0,0.04268]
[1763490385007,0.38954147,93300.0,93299.0,0.04268]
[1763490385519,0.00273267,93300.0,93299.0,0.04268]
[1763490386414,0.00373267,93300.0,93299.0,0.04268]
[1763490386813,0.04964267,93300.0,93299.0,0.04268]
[1763490388904,0.04964267,93300.0,93290.0,0.01285082]
[1763490388905,0.1502288,93291.0,93290.0,0.00016082]
[1763490389112,0.7698288,93291.0,93290.0,0.00016082]
[1763490389315,0.7484288,93291.0,93290.0,0.04618885]
[1763490389516,0.3876288,93291.0,93290.0,0.04618885]
[1763490390013,0.4090288,93291.0,93290.0,0.04618885]
[1763490390220,0.4110288,93291.0,93290.0,0.04618885]
[1763490390605,0.4110288,93291.0,93290.0,0.00235885]
[1763490391509,0.4110288,93291.0,93290.0,0.00016082]
[1763490392816,0.4110288,93291.0,93290.0,0.02188082]
[1763490393409,0.4110288,93291.0,93290.0,0.04618885]
[1763490394718,0.002,93291.0,93290.0,0.40698885]
[1763490396219,0.02643318,93291.0,93290.0,0.40698885]
[1763490396815,0.3660501,93299.0,93298.0,0.1510808]
[1763490397222,0.2588,93299.0,93298.0,0.1510808]
[1763490398419,0.2598,93299.0,93298.0,0.1510808]
[1763490398619,0.2618,93299.0,93298.0,0.1510808]
[1763490400218,0.30477,93299.0,93298.0,0.04383]
[1763490400524,0.30477,93299.0,93298.0,0.02172]
[1763490400722,0.1502242,93295.0,93294.0,0.02172]
[1763490401209,0.1502242,93295.0,93294.0,0.05691]
[1763490401928,0.1502288,93291.0,93290.0,0.00235885]
[1763490402115,0.1502288,93291.0,93290.0,0.00016082]
[1763490402619,0.1502438,93278.0,93277.0,0.38252]
[1763490402813,0.1502438,93278.0,93277.0,0.40463]
[1763490403213,0.1502438,93278.0,93277.0,0.5119049]
[1763490403616,0.1502438,93278.0,93277.0,0.40463]
[1763490403820,0.1502438,93278.0,93277.0,0.04383]
[1763490404726,0.1512438,93278.0,93277.0,0.04383]
[1763490405420,0.1502518,93271.0,93270.0,0.41732]
[1763490405618,0.1502518,93271.0,93270.0,0.41951803]
[1763490406718,0.1502518,93271.0,93270.0,0.05871803]
[1763490407525,0.2588,93274.0,93273.0,0.04383]
[1763490408320,0.2588,93274.0,93271.0,0.1072818]
[1763490408321,0.40377,93284.0,93276.0,0.01308]
[1763490408514,0.5110375,93284.0,93283.0,0.04383]
[1763490408715,0.77251335,93284.0,93283.0,0.04383]
[1763490409111,0.79391335,93284.0,93283.0,0.04383]
[1763490410314,0.79491335,93284.0,93283.0,0.04383]
[1763490411220,0.42884585,93284.0,93283.0,0.04383]
[1763490411416,0.3608,93295.0,93294.0,0.05691]
[1763490411618,0.5351031,93295.0,93294.0,0.02172]
[1763490411926,0.1502288,93292.0,93291.0,0.04383]
[1763490413331,0.1512288,93292.0,93291.0,0.04383]
[1763490414635,0.1522288,93292.0,93291.0,0.04383]
[1763490415226,0.002,93292.0,93291.0,0.04383]
[1763490416625,0.02357,93292.0,93291.0,0.04383]
[1763490417626,0.002,93292.0,93291.0,0.04383]
[1763490418432,0.02415,93292.0,93291.0,0.04383]
[1763490419326,0.002,93292.0,93291.0,0.04383]
[1763490419522,0.04667,93292.0,93291.0,0.04383]
[1763490421134,0.02415,93292.0,93291.0,0.04383]
[1763490421525,0.002,93292.0,93291.0,0.04383]
[1763490421730,0.14376489,93320.0,93291.0,0.04383]
[1763490421731,0.03835878,93321.0,93300.0,0.1524685]
[1763490421925,0.3608,93334.0,93300.0,0.1524685]
[1763490421926,0.1072152,93329.0,93328.0,0.04522]
[1763490422237,0.04467,93331.0,93330.0,0.04741803]
[1763490422429,0.04467,93331.0,93330.0,0.06027803]
[1763490422632,0.1072121,93332.0,93331.0,0.04522]
[1763490423048,0.3608,93334.0,93330.0,0.01505803]
[1763490423049,0.1518809,93333.0,93332.0,0.1072117]
[1763490423227,0.4680101,93334.0,93332.0,0.1524317]
[1763490423431,0.4680101,93334.0,93333.0,0.04522]
[1763490423633,0.15203212,93341.0,93340.0,0.05808]
[1763490423831,0.1759695,93341.0,93340.0,0.04741803]
[1763490424037,0.1759695,93341.0,93340.0,0.06027803]
[1763490424038,0.0240981,93341.0,93340.0,0.06027803]
[1763490424239,0.00016072,93341.0,93340.0,0.06027803]
[1763490425335,0.00016072,93341.0,93340.0,0.00219803]
[1763490425336,0.04483072,93341.0,93340.0,0.00219803]
[1763490425540,0.04483072,93341.0,93340.0,0.04741803]
[1763490425733,0.04583072,93341.0,93340.0,0.06027803]
[1763490425933,0.04683072,93341.0,93340.0,0.06027803]
[1763490426134,0.00216072,93341.0,93340.0,0.06027803]
[1763490426837,0.04683072,93341.0,93340.0,0.06027803]
[1763490427037,0.04683072,93341.0,93340.0,0.04741803]
[1763490427635,0.00216072,93341.0,93340.0,0.16748053]
[1763490427840,0.10936212,93341.0,93340.0,0.16748053]
[1763490428044,0.00216072,93341.0,93340.0,0.16748053]
[1763490429240,0.38295,93360.0,93359.0,0.1071807]
[1763490429433,0.38368267,93360.0,93359.0,0.04522]
[1763490429838,0.40620267,93360.0,93359.0,0.04522]
[1763490430549,0.00273267,93360.0,93359.0,0.40602]
[1763490430734,0.002,93360.0,93359.0,0.40602]
[1763490431134,0.003,93360.0,93359.0,0.40602]
[1763490431336,0.04840267,93360.0,93359.0,0.04522]
[1763490431745,0.04467,93353.0,93352.0,0.40602]
[1763490431935,0.1518576,93353.0,93352.0,0.40602]
[1763490432135,0.1071876,93353.0,93352.0,0.40602]
[1763490432335,0.1518576,93353.0,93352.0,0.40602]
[1763490432539,0.1518576,93353.0,93352.0,0.04522]
[1763490433431,0.4901296,93360.0,93359.0,0.04522]
[1763490433635,0.51338227,93360.0,93359.0,0.04522]
[1763490434037,0.49086227,93360.0,93359.0,0.04522]
[1763490434239,0.00073267,93360.0,93359.0,0.40602]
[1763490434437,0.1071718,93367.0,93366.0,0.04522]
[1763490434642,0.00016072,93369.0,93368.0,0.04522]
[1763490439342,7.2e-07,93369.0,93368.0,0.04522]
[1763490444658,0.10739465,93406.0,93405.0,0.04512]
[1763490444659,0.00026765,93406.0,93405.0,0.04512]
[1763490445854,0.00126765,93406.0,93405.0,0.04512]
[1763490446252,0.00026765,93406.0,93405.0,0.04512]
[1763490446442,0.00126765,93406.0,93405.0,0.04512]
[1763490447148,0.02383765,93406.0,93405.0,0.04512]
[1763490447352,0.04811765,93406.0,93405.0,0.04512]
[1763490448039,0.04711765,93406.0,93405.0,0.04512]
[1763490448241,0.04811765,93406.0,93405.0,0.04512]
[1763490448443,0.04661,93401.0,93400.0,0.66473803]
[1763490448649,0.1537425,93401.0,93400.0,0.40613803]
[1763490449252,0.00226765,93406.0,93400.0,0.37655803]
[1763490449456,0.02459765,93406.0,93405.0,0.04314]
[1763490449646,0.04787765,93406.0,93405.0,0.1502679]
[1763490449846,0.15500435,93406.0,93405.0,0.04314]
[1763490450052,0.1071325,93401.0,93400.0,0.37655803]
[1763490450247,0.1537425,93401.0,93400.0,0.41969803]
[1763490450553,0.04761,93401.0,93400.0,0.41969803]
[1763490451345,0.04761,93401.0,93400.0,0.00219803]
[1763490451549,0.04861,93401.0,93400.0,0.00219803]
[1763490452247,0.0721373,93401.0,93400.0,0.00219803]
[1763490452850,0.0721373,93401.0,93400.0,0.02330803]
[1763490453242,0.0255273,93401.0,93400.0,0.05889803]
[1763490453443,0.002,93401.0,93400.0,0.05889803]
[1763490460152,0.002,93401.0,93400.0,0.16603163]
[1763490460852,0.04861,93401.0,93400.0,0.16603163]
[1763490461261,0.02533,93401.0,93400.0,0.16603163]
[1763490461455,0.02533,93401.0,93400.0,0.05889803]
[1763490461456,0.04861,93401.0,93400.0,0.05889803]
[1763490462751,0.002,93401.0,93400.0,0.05889803]
[1763490464759,0.02533,93401.0,93400.0,0.05889803]
[1763490464967,0.002,93401.0,93400.0,0.05889803]
[1763490465557,0.002,93401.0,93400.0,0.31737803]
[1763490467967,0.04861,93401.0,93400.0,0.42451163]
[1763490469165,0.04861,93401.0,93400.0,0.04533803]
[1763490469368,0.07220222,93401.0,93400.0,0.04533803]
[1763490469768,0.07220222,93401.0,93400.0,0.15247163]
[1763490470770,0.07220222,93401.0,93400.0,0.16603163]
[1763490472772,0.07220222,93401.0,93400.0,0.05889803]
[1763490473872,0.07220222,93401.0,93400.0,0.04533803]
[1763490474677,0.07220222,93401.0,93400.0,0.00219803]
[1763490474874,0.110561,93401.0,93400.0,0.00219803]
[1763490475065,0.07220222,93401.0,93400.0,0.00219803]
[1763490475975,0.07220222,93401.0,93400.0,0.04533803]
[1763490476769,0.17933472,93401.0,93400.0,0.04533803]
[1763490477376,0.17933472,93401.0,93400.0,0.02330803]
[1763490477766,0.17933472,93401.0,93400.0,0.00219803]
[1763490480278,0.1511871,93397.0,93396.0,0.00016063]
[1763490480467,0.17477932,93397.0,93396.0,0.00016063]
[1763490480964,0.17477932,93397.0,93396.0,0.04284063]
[1763490480965,0.15286932,93397.0,93396.0,0.04284063]
[1763490481169,0.13072932,93397.0,93396.0,0.04284063]
[1763490481372,0.15286932,93397.0,93396.0,0.04284063]
[1763490481674,0.02459222,93397.0,93396.0,0.04284063]
[1763490482263,0.04675577,93397.0,93396.0,0.04284063]
[1763490482464,0.06866577,93397.0,93396.0,0.04284063]
[1763490482874,0.06966577,93397.0,93396.0,0.04284063]
[1763490483281,0.06966577,93397.0,93396.0,0.02126063]
[1763490483665,0.06966577,93397.0,93396.0,0.00016063]
[1763490483874,0.15121,93377.0,93376.0,0.46126037]
[1763490484177,0.15121,93377.0,93376.0,0.41631]
[1763490484363,0.15121,93377.0,93376.0,0.04268]
[1763490484564,0.1071772,93362.0,93360.0,0.43141037]
[1763490484769,0.1512272,93362.0,93361.0,0.04268]
[1763490484974,0.1512272,93362.0,93360.0,0.00219803]
[1763490484975,0.04405,93361.0,93360.0,0.00219803]
[1763490485175,0.0676669,93361.0,93360.0,0.00219803]
[1763490485575,0.1512422,93349.0,93348.0,0.0211]
[1763490485780,0.1512422,93349.0,93348.0,0.04268]
[1763490485976,0.04405,93349.0,93348.0,0.41631]
[1763490486566,0.00219803,93350.0,93349.0,0.1498722]
[1763490487978,0.00219803,93350.0,93349.0,0.04268]
[1763490489277,0.02433803,93350.0,93349.0,0.04268]
[1763490489680,0.3608,93357.0,93356.0,0.1498641]
[1763490490080,0.02433803,93360.0,93359.0,0.04268]
[1763490490283,0.04405,93357.0,93356.0,0.40348]
[1763490490673,0.04405,93357.0,93356.0,0.3608]
[1763490490874,0.04505,93357.0,93356.0,0.3608]
[1763490491081,0.04505,93357.0,93356.0,0.40348]
[1763490492181,0.001,93357.0,93356.0,0.40348]
[1763490492377,0.04405,93357.0,93356.0,0.04268]
[1763490492578,0.00219803,93360.0,93359.0,0.04268]
[1763490492779,0.00219803,93360.0,93359.0,0.1498607]
[1763490493380,0.00016063,93364.0,93363.0,0.1498561]
[1763490493578,0.00016063,93364.0,93363.0,0.04268]
[1763490493884,0.02230063,93364.0,93363.0,0.04268]
[1763490494573,0.04405,93358.0,93357.0,0.05551]
[1763490494770,0.1512318,93358.0,93357.0,0.05551]
[1763490495475,0.1512318,93358.0,93357.0,0.04268]
[1763490495682,0.00219803,93360.0,93359.0,0.1498607]
[1763490496282,0.00016063,93364.0,93363.0,0.1071761]
[1763490496477,0.10733553,93364.0,93363.0,0.04268]
[1763490496989,0.15138553,93364.0,93363.0,0.04268]
[1763490497475,0.00016063,93364.0,93363.0,0.1498561]
[1763490498186,0.04421063,93364.0,93363.0,0.04268]
[1763490498581,0.04421063,93364.0,93363.0,0.04368]
[1763490499478,0.04421063,93364.0,93363.0,0.001]
[1763490499695,0.04421063,93364.0,93363.0,0.04268]
[1763490499991,0.15138553,93364.0,93363.0,0.04268]
[1763490501388,0.00016063,93364.0,93363.0,0.04268]
[1763490501597,0.10733553,93364.0,93363.0,0.04268]
[1763490502090,0.02290063,93364.0,93363.0,0.04268]
[1763490502592,0.02290063,93364.0,93363.0,0.04368]
[1763490505289,0.00016063,93364.0,93363.0,0.04368]
[1763490506901,0.5123308,93385.0,93384.0,0.04439]
[1763490507286,0.5358907,93385.0,93384.0,0.04439]
[1763490508096,0.1518289,93378.0,93377.0,0.40493]
[1763490510298,0.1518289,93378.0,93377.0,0.38376]
[1763490510495,0.1518289,93378.0,93377.0,0.40493]
[1763490510890,0.1519889,93378.0,93377.0,0.40493]
[1763490511291,0.1519889,93378.0,93377.0,0.04413]
[1763490511489,0.1519889,93378.0,93375.0,0.00016063]
[1763490511490,0.05198,93376.0,93375.0,0.00016063]
[1763490511701,0.04513,93376.0,93375.0,0.04623063]
[1763490512590,0.40593,93376.0,93375.0,0.04623063]
[1763490512898,0.42953104,93376.0,93375.0,0.04623063]
[1763490513300,0.44308104,93376.0,93375.0,0.00016063]
[1763490513795,0.1523164,93354.0,93353.0,0.02291]
[1763490513990,0.1523164,93354.0,93353.0,0.04607]
[1763490514897,0.1523164,93354.0,93353.0,0.04707]
[1763490515488,0.1523164,93354.0,93353.0,0.001]
[1763490515693,0.17593908,93354.0,93353.0,0.002]
[1763490516596,0.1523164,93354.0,93353.0,0.002]
[1763490516899,0.53673698,93354.0,93353.0,0.002]
[1763490517292,0.53673698,93354.0,93353.0,0.04807]
[1763490517491,0.42955058,93354.0,93353.0,0.04807]
[1763490517994,0.06875058,93354.0,93353.0,0.04807]
[1763490518402,0.06875058,93354.0,93353.0,0.02491]
[1763490518596,0.42955058,93354.0,93353.0,0.002]
[1763490518997,0.1523268,93345.0,93344.0,0.00016063]
[1763490519400,0.1523268,93345.0,93344.0,0.04623063]
[1763490520301,0.1523268,93345.0,93344.0,0.04723063]
[1763490521705,0.1523268,93345.0,93344.0,0.02407063]
[1763490521903,0.5131268,93345.0,93344.0,0.00116063]
[1763490522099,0.5131268,93345.0,93344.0,0.00016063]
[1763490522299,0.53692375,93345.0,93344.0,0.00016063]
[1763490523592,0.5131268,93345.0,93344.0,0.00016063]
[1763490524506,0.5131268,93345.0,93344.0,0.02307063]
[1763490524710,0.5131268,93345.0,93344.0,0.00016063]
[1763490529410,0.1580963,93328.0,93327.0,0.3608]
[1763490529717,0.152352,93323.0,93322.0,0.04615343]
[1763490531212,0.151352,93323.0,93322.0,0.04615343]
[1763490531412,0.150352,93323.0,93322.0,0.04615343]
[1763490531810,0.150352,93323.0,93322.0,0.04715343]
[1763490532004,0.150352,93323.0,93322.0,0.00108343]
[1763490532209,0.150352,93323.0,93322.0,0.00208343]
[1763490532906,1.650352,93323.0,93322.0,0.00208343]
[1763490534210,0.00219803,93320.0,93313.0,0.00016072]
[1763490534511,0.1523624,93314.0,93313.0,0.04623072]
[1763490535111,0.02304,93314.0,93313.0,0.04623072]
[1763490535411,0.02312343,93314.0,93313.0,0.04623072]
[1763490536809,0.04521343,93314.0,93313.0,0.04623072]
[1763490537009,0.02312343,93314.0,93313.0,0.04623072]
[1763490537609,0.04521343,93314.0,93313.0,0.04623072]
[1763490540206,0.04521343,93314.0,93313.0,0.00016072]
[1763490542716,0.04521343,93314.0,93297.0,0.40574]
[1763490542717,0.04254,93298.0,93297.0,0.40574]
[1763490542917,0.1497908,93298.0,93297.0,0.40574]
[1763490543519,0.1497908,93298.0,93297.0,0.04494]
[1763490543906,0.00219803,93300.0,93299.0,0.04494]
[1763490544106,0.107242,93306.0,93305.0,0.04494]
[1763490544319,0.107242,93306.0,93304.0,0.1210039]
[1763490544320,0.00016072,93307.0,93306.0,0.1521816]
[1763490544815,0.12238925,93337.0,93306.0,0.4910516]
[1763490545008,0.04254,93335.0,93334.0,0.04494]
[1763490545211,0.1497551,93329.0,93328.0,0.04494]
[1763490546210,0.1497643,93321.0,93320.0,0.0587]
[1763490546814,0.04473803,93320.0,93319.0,0.00016072]
[1763490547318,0.04473803,93320.0,93319.0,0.02209072]
[1763490548620,0.04473803,93320.0,93319.0,0.04510072]
[1763490549717,0.04473803,93320.0,93319.0,0.00016072]
[1763490550812,0.06854019,93320.0,93319.0,0.00016072]
[1763490554517,0.32722019,93320.0,93319.0,0.00016072]
[1763490554918,0.1497839,93304.0,93303.0,0.38273]
[1763490555219,0.4084639,93304.0,93303.0,0.38273]
[1763490555524,0.1497942,93295.0,93294.0,0.40574]
[1763490557817,0.4450871,93304.0,93303.0,0.04494]
[1763490558137,0.43276488,93304.0,93303.0,0.04494]
[1763490558524,0.39022488,93304.0,93303.0,0.04494]
[1763490558724,0.43276488,93304.0,93303.0,0.04494]
[1763490558922,0.40862462,93304.0,93303.0,0.04494]
[1763490559619,0.1497919,93297.0,93296.0,0.04494]
[1763490560418,0.04254,93295.0,93294.0,0.3608]
[1763490560620,0.04254,93295.0,93294.0,0.38273]
[1763490561125,0.04254,93295.0,93294.0,0.02193]
[1763490561523,0.04254,93295.0,93294.0,0.04494]
[1763490562026,0.04254,93295.0,93294.0,0.02193]
[1763490563225,0.1516734,93287.0,93286.0,0.04532799]
[1763490563422,0.1516734,93287.0,93286.0,0.02315799]
[1763490564130,0.1516734,93287.0,93286.0,0.04532799]
[1763490565633,0.1516734,93287.0,93286.0,0.00026799]
[1763490565824,0.17580986,93287.0,93286.0,0.00026799]
[1763490566023,0.43448986,93287.0,93286.0,0.04532799]
[1763490566617,0.43448986,93287.0,93286.0,0.00026799]
[1763490567626,0.43548986,93287.0,93286.0,0.00026799]
[1763490568025,0.4348592,93287.0,93286.0,0.00026799]
[1763490568220,0.4348592,93287.0,93269.0,9.908e-05]
[1763490568221,0.1512929,93270.0,93269.0,9.908e-05]
[1763490568426,0.41221093,93270.0,93269.0,9.908e-05]
[1763490569435,0.1513045,93260.0,93259.0,0.00471616]
[1763490569728,0.15350253,93260.0,93259.0,0.00471616]
[1763490570532,0.15360161,93260.0,93259.0,0.00471616]
[1763490570933,0.15360161,93260.0,93259.0,0.04809616]
[1763490571733,0.15360161,93260.0,93259.0,0.00471616]
[1763490572727,0.15360161,93260.0,93259.0,0.02582616]
[1763490572926,0.15360161,93260.0,93259.0,0.04809616]
[1763490573625,0.00229711,93260.0,93259.0,0.04809616]
[1763490575331,0.02451711,93260.0,93259.0,0.04809616]
[1763490575722,0.00229711,93260.0,93259.0,0.04809616]
[1763490576536,9.908e-05,93260.0,93259.0,0.04809616]
[1763490576926,0.15144342,93279.0,93278.0,0.04338]
[1763490577128,0.41020342,93279.0,93278.0,0.04338]
[1763490577323,0.1512895,93273.0,93272.0,0.05732]
[1763490579631,0.00016082,93279.0,93278.0,0.04338]
[1763490579831,0.00016082,93279.0,93278.0,0.40418]
[1763490581534,0.5120654,93294.0,93293.0,0.04338]
[1763490581741,0.1512654,93294.0,93293.0,0.04338]
[1763490582933,0.1522654,93294.0,93293.0,0.04338]
[1763490583440,0.04401,93287.0,93286.0,0.3608]
[1763490583831,0.04401,93287.0,93286.0,0.38191]
[1763490584035,0.04401,93287.0,93286.0,0.40418]
[1763490584242,0.04401,93287.0,93286.0,0.04338]
[1763490585443,0.04401,93285.0,93284.0,0.00016082]
[1763490586845,0.04501,93285.0,93284.0,0.00016082]
[1763490587331,0.40581,93285.0,93284.0,0.00016082]
[1763490587538,0.40681,93285.0,93284.0,0.00016082]
[1763490588646,0.04601,93285.0,93284.0,0.04354082]
[1763490589848,0.04601,93285.0,93284.0,0.00016082]
[1763490590235,0.40681,93285.0,93284.0,0.00016082]
[1763490590948,0.40681,93285.0,93284.0,0.02127082]
[1763490591341,0.43093823,93285.0,93284.0,0.02127082]
[1763490591545,0.43093823,93285.0,93284.0,0.00016082]
[1763490598144,0.43093823,93285.0,93284.0,0.02127082]
[1763490598852,0.43093823,93285.0,93284.0,0.00016082]
[1763490600255,0.43093823,93285.0,93284.0,0.04566082]
[1763490600650,0.002,93285.0,93284.0,0.04566082]
[1763490601352,0.1522404,93299.0,93298.0,0.0455]
[1763490601553,0.00219803,93300.0,93299.0,0.0455]
[1763490601757,0.15443653,93300.0,93299.0,0.0455]
[1763490602458,0.1522454,93294.0,93293.0,0.0455]
[1763490602654,0.1522557,93285.0,93284.0,0.38342082]
[1763490602857,0.1522557,93285.0,93284.0,0.02262082]
[1763490603060,0.1522557,93285.0,93284.0,0.04566082]
[1763490603356,0.1522557,93285.0,93284.0,0.00016082]
[1763490603551,0.17640222,93285.0,93284.0,0.00016082]
[1763490606162,0.17640222,93285.0,93284.0,0.02262082]
[1763490606454,0.17640222,93285.0,93284.0,0.00016082]
[1763490608454,0.17640222,93285.0,93284.0,0.04566082]
[1763490608655,0.43516222,93285.0,93284.0,0.04566082]
[1763490608857,0.13141222,93285.0,93284.0,0.04566082]
[1763490609063,0.1072657,93285.0,93284.0,0.04566082]
[1763490609264,0.1522557,93285.0,93284.0,0.04566082]
[1763490609460,0.25876,93286.0,93285.0,0.0455]
[1763490609857,0.25876,93286.0,93285.0,0.1527657]
[1763490610670,0.00219803,93290.0,93289.0,0.1527611]
[1763490610860,0.02410803,93290.0,93289.0,0.0455]
[1763490611062,0.04718803,93290.0,93289.0,0.0455]
[1763490611371,0.00219803,93290.0,93289.0,0.0455]
[1763490611772,0.04718803,93290.0,93289.0,0.0455]
[1763490612070,0.02410803,93290.0,93289.0,0.0455]
[1763490612566,0.00219803,93290.0,93289.0,0.0455]
[1763490614378,0.04718803,93290.0,93289.0,0.0455]
[1763490614573,0.00219803,93290.0,93289.0,0.0455]
[1763490615274,0.00219803,93290.0,93289.0,0.4063]
[1763490615473,0.00219803,93290.0,93289.0,0.46408037]
[1763490615678,0.1072498,93299.0,93297.0,0.1072513]
[1763490615876,0.1291598,93299.0,93298.0,0.0455]
[1763490616176,0.1522398,93299.0,93298.0,0.0455]
[1763490616577,0.1072498,93299.0,93298.0,0.0455]
[1763490616769,0.08149822,93299.0,93298.0,0.0455]
[1763490617078,0.10340822,93299.0,93298.0,0.0455]
[1763490617972,0.08149822,93299.0,93298.0,0.0455]
[1763490618181,0.10340822,93299.0,93298.0,0.0455]
[1763490618389,0.12648822,93299.0,93298.0,0.0455]
[1763490618781,0.02191,93299.0,93298.0,0.0455]
[1763490618979,0.10944683,93300.0,93299.0,0.1527496]
[1763490619286,0.00016082,93303.0,93302.0,0.1527462]
[1763490620584,0.00116082,93303.0,93302.0,0.1527462]
[1763490621686,0.1529947,93321.0,93320.0,0.04557]
[1763490621990,0.1529947,93321.0,93320.0,0.02277]
[1763490622792,0.1529947,93321.0,93320.0,0.04557]
[1763490622986,0.00219803,93320.0,93318.0,0.1072278]
[1763490623180,0.1072243,93321.0,93317.0,0.0133]
[1763490623181,0.001,93321.0,93320.0,0.1527955]
[1763490624088,0.1072199,93325.0,93324.0,0.1527909]
[1763490624288,0.1529899,93325.0,93324.0,0.04557]
[1763490625186,0.1303599,93325.0,93324.0,0.04557]
[1763490625383,0.00026788,93326.0,93325.0,0.1527897]
[1763490626293,0.00026788,93326.0,93325.0,0.04557]
[1763490626585,0.04603788,93326.0,93325.0,0.04557]
[1763490627386,0.02340788,93326.0,93325.0,0.04557]
[1763490627783,0.00026788,93326.0,93325.0,0.04557]
[1763490628779,0.00026788,93326.0,93324.0,0.1072205]
[1763490628780,0.3608,93344.0,93343.0,0.04521]
[1763490628985,0.04602334,93344.0,93343.0,0.04521]
[1763490629180,0.1503486,93344.0,93343.0,0.04521]
[1763490630587,0.1513486,93344.0,93343.0,0.04521]
[1763490631591,0.5121486,93344.0,93343.0,0.04521]
[1763490632390,0.15255053,93340.0,93339.0,0.04521]
[1763490633692,0.1503582,93335.0,93334.0,3e-08]